bitfinex/quotes_SOLUSD_20260211
["timestamp","ask_amount","ask_price","bid_price","bid_amount"]
[1770796047606,43.03243415,81.334,81.31,4.15983839]
[1770796047607,1.07415539,81.329,81.31,4.15983839]
[1770796049799,1.07415539,81.329,81.311,0.43475129]
[1770796050306,1.07415539,81.335,81.311,12.73321029]
[1770796050510,30.73383507,81.344,81.32,3.72428395]
[1770796050511,1.07415539,81.344,81.32,3.72428395]
[1770796051009,1.07415539,81.344,81.321,0.43434684]
[1770796051308,1.11957065,81.361,81.33,3.72428395]
[1770796051532,30.72638938,81.364,81.32,3.72428395]
[1770796051533,1.11957065,81.359,81.32,3.72428395]
[1770796052014,1.11957065,81.357,81.32,3.72428395]
[1770796052506,1.11957065,81.357,81.32,16.02124641]
[1770796052906,43.01973991,81.358,81.31,3.72428395]
[1770796052907,1.11957065,81.349,81.31,3.72428395]
[1770796053798,1.11957065,81.339,81.301,12.29993592]
[1770796053999,1.11957065,81.337,81.301,12.29993592]
[1770796054706,1.11957065,81.337,81.3,3.72428395]
[1770796054911,1.11957065,81.337,81.3,3.72175374]
[1770796054912,1.11957065,81.336,81.3,3.72175374]
[1770796055592,1.11957065,81.336,81.301,12.29997171]
[1770796056595,39.4,81.337,81.301,12.29997171]
[1770796056596,1.11957065,81.334,81.301,12.29997171]
[1770796058601,12.29513235,81.333,81.301,12.29997171]
[1770796058797,1.11957065,81.332,81.301,12.29997171]
[1770796058998,1.11957065,81.332,81.31,3.72175374]
[1770796059614,1.11957065,81.364,81.32,3.72175374]
[1770796059812,1.11957065,81.364,81.34,3.72175374]
[1770796060900,43.01709622,81.363,81.34,3.72175374]
[1770796061099,1.11957065,81.362,81.34,3.72175374]
[1770796062608,1.11957065,81.369,81.35,3.72175374]
[1770796063302,1.11957065,81.369,81.36,3.72175374]
[1770796063501,1.11957065,81.369,81.35,3.72175374]
[1770796064822,1.11957065,81.375,81.36,3.72175374]
[1770796066804,1.11957065,81.375,81.35,3.72175374]
[1770796067213,1.11957065,81.379,81.36,3.72175374]
[1770796067422,1.11957065,81.378,81.35,3.72175374]
[1770796067927,1.11957065,81.377,81.29,102.9]
[1770796068130,1.11957065,81.359,81.32,3.72175374]
[1770796068305,1.11957065,81.349,81.32,3.72175374]
[1770796068812,1.11957065,81.347,81.32,3.72175374]
[1770796069121,1.11957065,81.347,81.321,12.29694666]
[1770796070226,1.11957065,81.359,81.321,43.03931333]
[1770796070417,1.11957065,81.359,81.34,3.72175374]
[1770796073539,1.11957065,81.359,81.32,3.72175374]
[1770796073540,1.11957065,81.357,81.307,30.74762438]
[1770796073822,12.29135426,81.358,81.32,3.72175374]
[1770796073823,1.11957065,81.349,81.32,3.72175374]
[1770796074810,1.11957065,81.347,81.32,3.72175374]
[1770796075037,1.11957065,81.329,81.29,3.72175374]
[1770796075336,1.11957065,81.329,81.296,12.30058969]
[1770796077819,110.62182903,81.359,81.29,3.72175374]
[1770796077820,1.11957065,81.319,81.29,3.72175374]
[1770796079819,1.11957065,81.317,81.29,3.72175374]
[1770796080125,1.11957065,81.317,81.283,12.3026951]
[1770796080720,1.11957065,81.317,81.29,3.72175374]
[1770796081634,3.72175374,81.31,81.27,12.30456915]
[1770796081853,1.11957065,81.299,81.257,43.54]
[1770796082146,1.11957065,81.289,81.249,12.30773415]
[1770796082441,1.11957065,81.289,81.25,3.72175374]
[1770796083622,40.63957065,81.289,81.25,3.72175374]
[1770796083833,1.11957065,81.278,81.24,12.30905776]
[1770796084136,1.11957065,81.278,81.24,16.0308115]
[1770796084542,40.63957065,81.278,81.24,16.0308115]
[1770796084733,1.11957065,81.277,81.24,16.0308115]
[1770796086020,1.11957065,81.275,81.24,16.0308115]
[1770796086412,12.3037551,81.276,81.25,3.72175374]
[1770796086964,1.11957065,81.296,81.27,3.72175374]
[1770796088138,12.30087951,81.295,81.27,3.72175374]
[1770796089838,1.11957065,81.295,81.264,12.30556173]
[1770796091944,1.11957065,81.295,81.25,74.26906816]
[1770796091945,1.11957065,81.287,81.252,12.30731733]
[1770796092446,1.11957065,81.279,81.24,3.72175374]
[1770796092631,1.11957065,81.279,81.247,12.30809165]
[1770796092941,1.11957065,81.279,81.242,12.30878007]
[1770796093146,1.11957065,81.279,81.25,3.72175374]
[1770796093527,1.04436099,81.279,81.251,0.07328765]
[1770796093927,12.30345234,81.278,81.251,0.07328765]
[1770796094136,12.30345234,81.278,81.241,0.07331197]
[1770796094533,12.30278653,81.283,81.251,0.07331197]
[1770796094845,12.30278653,81.283,81.26,3.72175374]
[1770796095339,12.30278653,81.283,81.257,0.07334971]
[1770796095543,13.39566153,81.283,81.257,0.07334971]
[1770796095942,1.092875,81.282,81.257,0.07334971]
[1770796097045,1.092875,81.28,81.257,0.07334971]
[1770796097246,1.092875,81.28,81.25,3.79514625]
[1770796097427,1.092875,81.28,81.25,16.10277747]
[1770796097623,4.81462874,81.28,81.245,0.07341608]
[1770796097849,1.092875,81.279,81.246,12.30823403]
[1770796098141,1.092875,81.279,81.247,0.07341608]
[1770796098845,1.092875,81.279,81.242,12.30888911]
[1770796099137,12.30345234,81.278,81.242,12.38232984]
[1770796099331,1.092875,81.277,81.242,12.38232984]
[1770796099530,1.092875,81.277,81.243,0.07346415]
[1770796101040,1.08196582,81.286,81.261,0.07351285]
[1770796101243,1.08196582,81.284,81.261,0.07351285]
[1770796102540,30.75069398,81.299,81.262,0.0735304]
[1770796102541,1.08196582,81.291,81.262,0.0735304]
[1770796104133,1.08196582,81.289,81.255,0.07276293]
[1770796104333,43.05148957,81.298,81.255,0.07276293]
[1770796104334,12.30193878,81.288,81.255,0.07276293]
[1770796104547,1.10135604,81.287,81.255,0.07276293]
[1770796105755,1.10135604,81.285,81.255,0.07276293]
[1770796106852,1.10135604,81.285,81.251,12.30754083]
[1770796107449,1.10135604,81.279,81.24,43.52]
[1770796107762,12.30496628,81.268,81.232,0.06888647]
[1770796107966,1.10135604,81.267,81.232,0.06888647]
[1770796110750,1.10135604,81.265,81.232,0.06888647]
[1770796111556,1.10135604,81.265,81.241,0.06667622]
[1770796111754,1.10135604,81.265,81.232,0.06595501]
[1770796112974,1.10135604,81.249,81.22,0.2]
[1770796113274,1.10135604,81.239,81.22,0.2]
[1770796116176,1.10135604,81.237,81.21,0.2]
[1770796116379,12.30951032,81.238,81.21,0.2]
[1770796116380,1.10135604,81.229,81.21,0.2]
[1770796117172,1.10135604,81.227,81.21,0.2]
[1770796118455,1.10135604,81.225,81.21,0.2]
[1770796120682,12.31163202,81.224,81.21,0.2]
[1770796121177,13.41298806,81.224,81.21,0.2]
[1770796122263,1.10135604,81.232,81.21,3.93141798]
[1770796122467,39.78,81.233,81.211,0.26019862]
[1770796122660,3.73141798,81.25,81.221,0.25971104]
[1770796122661,1.10135604,81.247,81.221,0.25971104]
[1770796123363,1.10135604,81.257,81.221,0.25971104]
[1770796125180,1.10135604,81.255,81.223,0.258751]
[1770796126591,1.10135604,81.249,81.223,0.258751]
[1770796127181,1.10135604,81.247,81.223,0.258751]
[1770796128076,1.10135604,81.247,81.216,0.25737566]
[1770796129873,12.30829825,81.246,81.216,0.25737566]
[1770796130065,1.10135604,81.245,81.216,0.25737566]
[1770796132066,52.16733161,81.253,81.221,0.25513821]
[1770796132266,13.32983542,81.253,81.231,0.25513821]
[1770796133281,1.02250381,81.259,81.231,0.25513821]
[1770796134783,1.02250381,81.249,81.214,0.25384421]
[1770796134968,1.02250381,81.249,81.221,12.31196075]
[1770796135869,1.02250381,81.249,81.224,12.31149315]
[1770796137070,1.02250381,81.249,81.221,0.25300909]
[1770796138567,1.02250381,81.247,81.213,0.25220499]
[1770796138782,1.02250381,81.247,81.214,12.31314439]
[1770796139067,1.02250381,81.245,81.214,12.31314439]
[1770796139272,1.02250381,81.245,81.214,12.56534938]
[1770796139472,1.02250381,81.245,81.214,12.31314439]
[1770796139767,1.02250381,81.245,81.215,0.25181283]
[1770796142076,12.30860125,81.244,81.216,12.31284475]
[1770796142286,1.02250381,81.272,81.231,0.2510421]
[1770796142901,1.02250381,81.269,81.231,0.2510421]
[1770796146087,1.02250381,81.267,81.233,0.24952682]
[1770796147500,1.02250381,81.265,81.235,0.2491637]
[1770796151401,1.02250381,81.263,81.236,12.30981338]
[1770796152178,1.02250381,81.259,81.216,12.31280094]
[1770796152382,1.02250381,81.239,81.216,12.31280094]
[1770796154384,1.02250381,81.239,81.211,12.31360283]
[1770796155009,1.02250381,81.237,81.21,0.2]
[1770796155975,12.30981338,81.236,81.21,0.2]
[1770796156177,1.02250381,81.235,81.21,0.2]
[1770796159706,1.02250381,81.233,81.21,0.2]
[1770796166007,1.08520065,81.231,81.21,0.2]
[1770796166212,1.08520065,81.219,81.194,0.23824439]
[1770796166413,1.08520065,81.226,81.201,0.43824439]
[1770796166791,1.08520065,81.226,81.209,12.750837]
[1770796167112,1.08520065,81.232,81.21,0.4370803]
[1770796167817,1.08520065,81.232,81.21,3.73040447]
[1770796168010,1.08520065,81.236,81.211,0.43592487]
[1770796168313,13.39516556,81.235,81.211,0.43592487]
[1770796168710,12.30996491,81.235,81.211,0.43592487]
[1770796168907,1.08520065,81.234,81.211,0.43592487]
[1770796169117,1.08520065,81.249,81.221,0.43478147]
[1770796169421,1.08520065,81.268,81.241,0.43478147]
[1770796169799,1.08520065,81.259,81.224,0.43365029]
[1770796170406,1.08520065,81.257,81.226,0.43365029]
[1770796170608,1.08520065,81.271,81.241,0.43252902]
[1770796171020,1.08520065,81.27,81.241,0.43252902]
[1770796171911,1.08520065,81.269,81.241,0.43252902]
[1770796172515,1.08520065,81.269,81.242,12.30890426]
[1770796174122,1.08520065,81.267,81.242,12.30890426]
[1770796174821,1.08520065,81.249,81.213,12.31318563]
[1770796174998,1.08520065,81.239,81.213,12.31318563]
[1770796175199,1.08520065,81.239,81.208,0.42818425]
[1770796175394,1.08520065,81.239,81.2,3.73040447]
[1770796175395,1.08520065,81.229,81.202,12.31483855]
[1770796176201,40.2,81.245,81.19,12.74389741]
[1770796176202,1.08520065,81.219,81.19,12.74389741]
[1770796176426,1.08520065,81.219,81.194,12.31606354]
[1770796176812,1.08520065,81.219,81.195,0.42608589]
[1770796180226,3.73186406,81.24,81.201,0.42305931]
[1770796180401,1.08520065,81.239,81.201,0.42305931]
[1770796181303,40.22,81.239,81.201,0.42305931]
[1770796181520,1.08520065,81.238,81.201,0.42305931]
[1770796181705,1.08520065,81.229,81.201,0.42305931]
[1770796182019,1.08520065,81.229,81.196,12.31587762]
[1770796182227,1.08520065,81.227,81.196,12.31587762]
[1770796182612,1.08520065,81.227,81.197,0.42106569]
[1770796184825,3.73186406,81.23,81.196,12.31587762]
[1770796184826,1.08520065,81.225,81.201,0.4181912]
[1770796185125,1.08520065,81.225,81.195,0.4181912]
[1770796186225,1.08520065,81.225,81.195,12.73420344]
[1770796186649,12.31163202,81.224,81.195,12.73420344]
[1770796186927,1.08520065,81.223,81.195,12.73420344]
[1770796187722,1.08520065,81.223,81.19,3.73186406]
[1770796188229,1.08520065,81.223,81.191,0.41540079]
[1770796188633,1.08520065,81.219,81.186,0.41540079]
[1770796188826,3.73186406,81.22,81.186,0.41540079]
[1770796188827,1.08520065,81.217,81.186,0.41540079]
[1770796189533,1.08520065,81.217,81.181,12.31813425]
[1770796189717,1.08520065,81.217,81.181,12.73174438]
[1770796189922,1.08520065,81.217,81.185,12.31745921]
[1770796190921,1.01594765,81.215,81.185,12.31745921]
[1770796191938,1.01594765,81.215,81.184,0.4109748]
[1770796193037,1.01594765,81.215,81.176,12.31886921]
[1770796193236,1.01594765,81.209,81.173,0.41011842]
[1770796194023,1.01594765,81.209,81.181,0.40927428]
[1770796194216,43.09601791,81.214,81.181,0.40927428]
[1770796194217,12.31314797,81.214,81.181,0.40927428]
[1770796194720,12.31314797,81.214,81.191,0.40843417]
[1770796194927,1.01594765,81.217,81.191,0.40843417]
[1770796195317,12.31284475,81.216,81.191,0.40843417]
[1770796195516,13.3287924,81.216,81.191,0.40843417]
[1770796195722,1.01594765,81.215,81.191,0.40843417]
[1770796195918,1.01594765,81.215,81.193,0.40760404]
[1770796196918,1.01594765,81.215,81.17,0.2]
[1770796197123,1.01594765,81.207,81.174,0.40679873]
[1770796197324,1.01594765,81.207,81.176,0.40679873]
[1770796198321,1.01594765,81.205,81.176,0.40679873]
[1770796199617,1.01594765,81.205,81.173,12.31922719]
[1770796200335,1.01594765,81.205,81.177,0.40440284]
[1770796200535,40.34,81.215,81.181,0.40440284]
[1770796200836,1.01594765,81.209,81.174,0.40362177]
[1770796201338,1.01594765,81.209,81.175,0.40362177]
[1770796201956,1.01594765,81.199,81.17,0.2]
[1770796202653,1.01594765,81.197,81.17,0.2]
[1770796202835,1.01594765,81.197,81.171,0.402095]
[1770796203023,40.34,81.201,81.181,0.402095]
[1770796203344,1.01594765,81.2,81.175,0.402095]
[1770796204332,40.34,81.201,81.181,0.40134679]
[1770796204532,1.01594765,81.232,81.191,0.40134679]
[1770796204730,1.01594765,81.232,81.21,3.73186406]
[1770796205048,1.01594765,81.232,81.21,4.13246291]
[1770796206642,12.31057108,81.231,81.211,0.39985826]
[1770796207529,1.01594765,81.23,81.205,0.39912274]
[1770796208047,1.01594765,81.228,81.2,3.73186406]
[1770796208343,1.01594765,81.228,81.201,0.39841009]
[1770796208546,1.01594765,81.235,81.211,0.39841009]
[1770796208744,12.30946353,81.239,81.22,3.73186406]
[1770796210545,40.38,81.252,81.22,3.73186406]
[1770796210546,12.30785279,81.249,81.23,4.1288552]
[1770796210744,12.30785279,81.249,81.23,3.73186406]
[1770796210745,13.32380044,81.249,81.23,3.73186406]
[1770796210955,1.01594765,81.248,81.22,3.73186406]
[1770796211152,1.01594765,81.248,81.215,12.31294895]
[1770796211741,1.01594765,81.248,81.21,4.12815446]
[1770796211742,1.01594765,81.248,81.21,3.73186406]
[1770796211940,1.01594765,81.248,81.21,16.0454944]
[1770796212328,43.07746226,81.249,81.206,0.3955965]
[1770796212329,1.01594765,81.239,81.206,12.31434051]
[1770796212536,1.01594765,81.237,81.21,3.73186406]
[1770796213046,1.01594765,81.237,81.211,0.39490804]
[1770796214855,12.30841436,81.246,81.221,0.39356025]
[1770796215744,3.73186406,81.24,81.211,0.39288231]
[1770796216048,1.01594765,81.229,81.19,3.73186406]
[1770796216241,1.01594765,81.219,81.19,3.73186406]
[1770796216450,1.01594765,81.219,81.19,12.31678554]
[1770796216950,1.01594765,81.217,81.19,16.0486496]
[1770796217251,1.01594765,81.217,81.19,16.44089925]
[1770796217754,1.01594765,81.217,81.19,12.70903519]
[1770796218139,1.01594765,81.217,81.19,0.39224965]
[1770796219052,1.01594765,81.217,81.191,12.31663608]
[1770796219239,13.3287924,81.216,81.191,12.31663608]
[1770796219440,1.01594765,81.215,81.191,12.31663608]
[1770796219648,1.01594765,81.209,81.185,12.31750871]
[1770796219856,1.01594765,81.209,81.181,12.3181183]
[1770796220251,1.01594765,81.209,81.185,12.31753661]
[1770796222149,1.01594765,81.209,81.177,12.31876023]
[1770796222349,1.01594765,81.209,81.177,12.70726067]
[1770796222663,1.01594765,81.209,81.181,0.38792046]
[1770796224185,1.01594765,81.209,81.182,12.31800152]
[1770796224459,1.01594765,81.209,81.183,0.38727059]
[1770796225759,1.04514824,81.221,81.191,0.38533314]
[1770796226969,1.04514824,81.219,81.185,0.38469647]
[1770796230353,1.04514824,81.219,81.186,12.31739462]
[1770796230567,1.04514824,81.219,81.191,0.38285296]
[1770796230755,1.04514824,81.227,81.201,0.38224455]
[1770796233780,12.30982695,81.236,81.211,0.38046645]
[1770796233975,13.35497519,81.236,81.211,0.38046645]
[1770796234173,1.04514824,81.236,81.22,3.73186406]
[1770796234385,41.52514824,81.243,81.22,4.11233051]
[1770796234673,1.04514824,81.242,81.22,4.11233051]
[1770796236177,1.04514824,81.242,81.22,3.73186406]
[1770796238354,1.04514824,81.239,81.21,3.73186406]
[1770796238554,1.04514824,81.239,81.201,43.7]
[1770796238768,1.04514824,81.229,81.191,0.37761436]
[1770796239361,1.04514824,81.229,81.2,3.73178788]
[1770796239962,1.04514824,81.229,81.195,12.31594721]
[1770796240163,12.31102575,81.228,81.191,12.31663608]
[1770796240378,1.04514824,81.227,81.192,0.37706497]
[1770796241768,1.04514824,81.219,81.192,0.37706497]
[1770796241962,1.04514824,81.218,81.193,12.31633268]
[1770796247282,12.31269315,81.217,81.19,4.10778044]
[1770796247470,1.04514824,81.216,81.191,0.37342123]
[1770796248174,1.04514824,81.216,81.192,0.37292292]
[1770796249973,1.04514824,81.22,81.2,3.73178788]
[1770796250162,1.04514824,81.22,81.201,0.37192725]
[1770796251489,1.02289452,81.229,81.201,0.37192725]
[1770796252992,1.02289452,81.227,81.202,12.31496761]
[1770796253979,1.02289452,81.227,81.202,12.68453089]
[1770796254589,1.02289452,81.227,81.203,0.36956328]
[1770796255178,1.02289452,81.225,81.203,0.36956328]
[1770796257394,1.02289452,81.223,81.2,16.04692826]
[1770796257700,1.02289452,81.223,81.2,16.41515563]
[1770796258091,1.02289452,81.223,81.194,0.36778588]
[1770796258279,1.02289452,81.219,81.192,12.31638523]
[1770796258593,1.02289452,81.219,81.193,0.36778588]
[1770796261300,1.02289452,81.219,81.194,12.31618099]
[1770796261495,1.02289452,81.219,81.195,0.36649218]
[1770796262104,1.02289452,81.217,81.195,0.36649218]
[1770796264115,1.02289452,81.209,81.172,0.36522839]
[1770796264404,1.02289452,81.199,81.174,12.31921333]
[1770796264706,1.02289452,81.199,81.171,0.36522839]
[1770796265498,1.02289452,81.199,81.172,12.31939395]
[1770796266306,3.73156006,81.2,81.17,0.2]
[1770796266307,1.02289452,81.197,81.17,0.2]
[1770796267288,12.31587762,81.196,81.17,0.2]
[1770796267592,1.02289452,81.195,81.17,0.2]
[1770796269504,40.7,81.209,81.181,0.36323675]
[1770796269505,1.02289452,81.207,81.181,0.36323675]
[1770796270405,1.02289452,81.207,81.19,3.73156006]
[1770796270613,12.314361,81.206,81.19,3.73156006]
[1770796270793,12.314361,81.206,81.186,0.36285075]
[1770796271309,3.73156006,81.22,81.191,0.36245707]
[1770796271310,13.3363403,81.213,81.191,0.36245707]
[1770796271529,12.31254155,81.218,81.201,0.36245707]
[1770796271809,3.73156006,81.24,81.201,0.36245707]
[1770796271810,12.31107291,81.228,81.201,0.36245707]
[1770796272005,1.02289452,81.231,81.211,0.3620774]
[1770796272805,1.02289452,81.245,81.221,0.36170359]
[1770796273815,1.02289452,81.245,81.22,3.73156006]
[1770796275104,1.02289452,81.243,81.215,0.36132988]
[1770796275307,1.02289452,81.243,81.22,3.73156006]
[1770796277220,1.02289452,81.239,81.21,3.73156006]
[1770796277401,1.02289452,81.239,81.203,12.31471986]
[1770796277602,1.02289452,81.237,81.203,12.31471986]
[1770796278203,1.02289452,81.237,81.204,0.3598742]
[1770796280318,1.02941361,81.235,81.204,0.3598742]
[1770796281525,1.02941361,81.235,81.206,0.35847475]
[1770796283423,40.82,81.238,81.221,0.35780298]
[1770796283630,12.30829189,81.247,81.231,0.35780298]
[1770796284215,1.02941361,81.246,81.221,0.3570855]
[1770796286226,12.30844975,81.245,81.221,0.3570855]
[1770796286431,0.97774681,81.244,81.221,0.3570855]
[1770796292746,30.76764428,81.255,81.216,0.35022608]
[1770796292747,0.97774681,81.242,81.216,0.35022608]
[1770796293036,0.97774681,81.239,81.204,12.31465003]
[1770796293215,0.97774681,81.239,81.205,0.35022608]
[1770796294240,0.97774681,81.237,81.205,0.35022608]
[1770796294940,0.97774681,81.237,81.211,0.34895135]
[1770796295819,12.30981338,81.236,81.211,0.34895135]
[1770796296026,0.97774681,81.235,81.211,0.34895135]
[1770796296330,0.97774681,81.241,81.221,0.34831237]
[1770796296530,0.97774681,81.244,81.221,0.34831237]
[1770796296932,12.30877131,81.243,81.221,0.34831237]
[1770796297127,0.97774681,81.252,81.221,0.34831237]
[1770796297328,12.3072452,81.253,81.231,0.3476922]
[1770796298120,40.96,81.26,81.231,0.3476922]
[1770796298320,0.97774681,81.268,81.241,0.3470773]
[1770796298946,0.97774681,81.268,81.25,4.07311557]
[1770796299139,0.97774681,81.268,81.251,0.34646547]
[1770796299337,12.30360372,81.277,81.251,0.34646547]
[1770796299545,1.05489448,81.309,81.27,3.7266501]
[1770796299741,1.05489448,81.309,81.266,43.92]
[1770796299742,1.05489448,81.308,81.266,43.92]
[1770796299941,1.05489448,81.308,81.28,3.7266501]
[1770796300326,1.05489448,81.306,81.27,3.7266501]
[1770796300547,1.05489448,81.306,81.28,3.7266501]
[1770796301126,1.05489448,81.306,81.281,12.30299824]
[1770796301352,1.05489448,81.306,81.27,3.7266501]
[1770796301648,1.05489448,81.306,81.272,12.30428276]
[1770796301945,1.05489448,81.306,81.28,3.7266501]
[1770796302150,0.1,81.32,81.3,3.7266501]
[1770796302326,1.05489448,81.333,81.31,3.7266501]
[1770796302846,12.29465403,81.337,81.31,3.7266501]
[1770796302847,13.34954851,81.337,81.31,3.7266501]
[1770796303545,1.05489448,81.337,81.32,3.7266501]
[1770796303750,12.29347448,81.344,81.32,3.7266501]
[1770796303751,13.34836896,81.344,81.32,3.7266501]
[1770796303949,1.05489448,81.338,81.31,3.7266501]
[1770796304353,1.05489448,81.338,81.311,12.298459]
[1770796304648,0.1,81.34,81.311,12.298459]
[1770796304952,0.1,81.34,81.32,3.7266501]
[1770796305136,0.1,81.34,81.33,3.7266501]
[1770796305335,12.29200531,81.354,81.33,3.7266501]
[1770796305537,1.05489448,81.353,81.32,3.7266501]
[1770796305753,1.05489448,81.353,81.33,3.7266501]
[1770796305947,12.29129787,81.359,81.34,3.7266501]
[1770796305948,1.05489448,81.359,81.34,3.7266501]
[1770796306151,0.1,81.36,81.35,3.7266501]
[1770796306350,0.1,81.37,81.36,3.7266501]
[1770796306542,1.05489448,81.369,81.34,3.7266501]
[1770796309852,0.1,81.37,81.325,74.64053786]
[1770796309853,1.05489448,81.367,81.33,16.02212631]
[1770796310035,1.05489448,81.367,81.34,3.7266501]
[1770796310357,0.1,81.37,81.35,3.7266501]
[1770796310648,1.15489448,81.37,81.341,12.29392311]
[1770796310834,1.05489448,81.368,81.325,43.92]
[1770796311035,1.05489448,81.368,81.34,3.7266501]
[1770796311235,1.05489448,81.368,81.341,12.29392311]
[1770796311451,1.05489448,81.368,81.35,3.7266501]
[1770796312851,1.05489448,81.368,81.341,12.29392311]
[1770796313042,1.05489448,81.368,81.35,3.7266501]
[1770796313240,1.05489448,81.369,81.34,3.7266501]
[1770796313440,1.05489448,81.368,81.34,3.7266501]
[1770796313638,1.05489448,81.368,81.329,12.2956503]
[1770796313954,1.05489448,81.368,81.33,3.7266501]
[1770796314653,12.28969263,81.369,81.31,3.7266501]
[1770796314654,1.05489448,81.349,81.31,3.7266501]
[1770796314949,1.05489448,81.349,81.31,16.02512732]
[1770796315160,1.05489448,81.347,81.31,16.02512732]
[1770796315341,1.05489448,81.347,81.32,3.7266501]
[1770796316236,1.05489448,81.347,81.31,3.7266501]
[1770796317351,1.05489448,81.345,81.31,3.7266501]
[1770796318554,1.05489448,81.345,81.311,12.298459]
[1770796320045,3.7266501,81.34,81.3,16.02671281]
[1770796320241,1.05489448,81.339,81.3,16.02671281]
[1770796320555,1.05489448,81.339,81.304,12.29950959]
[1770796320759,1.05489448,81.339,81.311,12.298459]
[1770796321539,1.05489448,81.349,81.32,3.7266501]
[1770796321939,1.05489448,81.349,81.301,43.86]
[1770796321940,3.7266501,81.34,81.31,3.7266501]
[1770796322136,1.05489448,81.339,81.31,16.02519671]
[1770796322744,12.29286522,81.348,81.32,3.7266501]
[1770796322950,40.96,81.35,81.32,3.7266501]
[1770796323147,40.96,81.35,81.33,3.7266501]
[1770796323444,12.29232373,81.352,81.33,3.7266501]
[1770796324048,13.34721821,81.352,81.33,3.7266501]
[1770796325069,1.05489448,81.351,81.322,12.29667769]
[1770796325250,1.05489448,81.349,81.31,59.90519075]
[1770796325746,1.05489448,81.349,81.315,12.29773604]
[1770796326064,1.05489448,81.349,81.32,3.7266501]
[1770796326262,1.05489448,81.349,81.313,12.29803903]
[1770796326566,1.05489448,81.347,81.32,3.7266501]
[1770796326963,1.05489448,81.347,81.313,12.29803903]
[1770796328370,1.05489448,81.345,81.313,12.29803903]
[1770796328867,30.73065198,81.352,81.32,3.7266501]
[1770796328868,12.29247708,81.351,81.32,3.7266501]
[1770796329072,1.05489448,81.35,81.32,3.7266501]
[1770796329647,3.7266501,81.35,81.31,47.6066501]
[1770796329869,1.05489448,81.349,81.311,12.298459]
[1770796330879,1.05489448,81.347,81.31,47.6066501]
[1770796331071,1.05489448,81.347,81.311,12.298459]
[1770796331578,1.05489448,81.347,81.32,3.7266501]
[1770796331879,12.29225517,81.353,81.32,3.7266501]
[1770796332183,1.05489448,81.361,81.34,3.7266501]
[1770796332477,12.28867916,81.376,81.35,3.7266501]
[1770796332850,1.05489448,81.379,81.35,3.7266501]
[1770796333272,1.05489448,81.369,81.338,12.29426704]
[1770796333460,1.05489448,81.369,81.342,12.29370627]
[1770796333663,1.05489448,81.369,81.35,3.7266501]
[1770796334273,1.05489448,81.382,81.351,12.29241189]
[1770796334478,1.05489448,81.38,81.351,12.29241189]
[1770796335170,1.05489448,81.385,81.341,30.73449655]
[1770796335371,1.05489448,81.385,81.35,3.7266501]
[1770796335770,3.7266501,81.38,81.35,3.7266501]
[1770796335973,1.05489448,81.379,81.35,3.7266501]
[1770796337057,1.05489448,81.379,81.351,12.29241189]
[1770796338668,1.05489448,81.379,81.36,3.7266501]
[1770796338876,1.05489448,81.392,81.37,3.7266501]
[1770796339660,1.05489448,81.399,81.37,3.7266501]
[1770796339978,1.05489448,81.399,81.38,3.7266501]
[1770796340190,1.05489448,81.408,81.38,3.7266501]
[1770796341267,1.05489448,81.406,81.371,56.20939056]
[1770796341667,1.05489448,81.406,81.371,12.28939056]
[1770796342180,1.05489448,81.406,81.37,3.7266501]
[1770796342983,1.05489448,81.389,81.36,3.7266501]
[1770796343169,1.05489448,81.404,81.37,3.7266501]
[1770796343371,1.05489448,81.402,81.37,3.7266501]
[1770796343775,1.05489448,81.402,81.366,12.29011608]
[1770796343976,1.05489448,81.399,81.36,3.7266501]
[1770796344181,1.05489448,81.399,81.37,3.7266501]
[1770796346572,1.05489448,81.379,81.34,3.7266501]
[1770796346889,1.05489448,81.359,81.33,12.29555132]
[1770796347094,3.7266501,81.38,81.34,3.7266501]
[1770796347265,1.05489448,81.379,81.34,3.7266501]
[1770796347465,1.05489448,81.369,81.34,3.7266501]
[1770796348374,1.05489448,81.369,81.33,46.76116613]
[1770796348576,3.7266501,81.37,81.33,46.76116613]
[1770796348577,1.05489448,81.367,81.33,46.76116613]
[1770796349270,1.05489448,81.367,81.34,3.7266501]
[1770796349490,40.92,81.385,81.33,43.03451603]
[1770796349491,1.05489448,81.384,81.33,43.03451603]
[1770796349669,1.05489448,81.383,81.35,3.7266501]
[1770796350974,1.05489448,81.383,81.325,43.88]
[1770796350975,1.05489448,81.393,81.36,3.7266501]
[1770796351470,1.05489448,81.393,81.37,3.7266501]
[1770796352290,1.05489448,81.393,81.36,3.7266501]
[1770796352993,12.28621977,81.392,81.361,12.29090104]
[1770796353993,1.05489448,81.389,81.361,12.29090104]
[1770796354185,1.05489448,81.389,81.355,12.29166161]
[1770796354381,1.05489448,81.389,81.35,3.7266501]
[1770796356097,1.05489448,81.387,81.351,12.29241189]
[1770796357693,1.05489448,81.379,81.347,43.88]
[1770796357895,1.05489448,81.379,81.342,12.29369044]
[1770796358797,1.05489448,81.377,81.341,43.92]
[1770796359091,1.05489448,81.369,81.33,3.71877486]